Cogmind - Beta 12 @@@ ROGUE MODE // 2023.04.06 @ 12:40:31 Player: Torako Result: Escaped! Performance ------------- Evolutions (9) 4500 Regions Visited (28) 5600 Robots Destroyed (359) 1795 Value Destroyed (18528) 18528 Prototype IDs (89) 1780 Alien Tech Used (0) 0 Bonus (9526) 9526 TOTAL SCORE: 41729 Bonus ------- High Alert Combat Kills 2343 Follower Combat Kills 2223 Entered Garrisons 200 Network Hubs Disabled 200 Aligned with FarCom 300 Met Data Miner 300 Met Warlord at Base 500 MAIN.C Attacked Warlord 500 Warlord Defense Kills 176 Built Enhanced Grunts 300 A7 Reached Mainframe 300 Met R17 at Cetus 500 Win 3000 Friendly Fire -1316 Cogmind --------- Core Integrity 1600/1600 Matter 300/300 Energy 769/790 System Corruption 0% Temperature Cool (58) Movement Hovering (34) Location To Epsilon Eridani Parts ------- > --- POWER (3) -------- Light Quantum Reactor Vortex Chain Reactor > --- PROPULSION (8) --- Antigrav System Cooled Antigrav System Experimental Gyrokinetic Inverter Combat Linear Gravjet Combat Linear Gravjet Combat Linear Gravjet Combat Linear Gravjet Combat Linear Gravjet > --- UTILITY (12) ----- Advanced Heat Sink Medium Storage Unit Advanced Melee Analysis Suite Experimental Melee Analysis Suite Improved Armor Integrity Analyzer Improved Reaction Control System Improved Phase Shifter Improved Cloaking Device Improved Force Field Improved Hacking Suite Advanced Hacking Suite Improved System Shield > --- WEAPON (2) ------- Vortex Catalyst Activator > --- INVENTORY (10) --- Advanced Power Amplifier Gravity Neutralizer System Shield Advanced Variable Charge Gun Latent Energy Streamer Enhanced Nova Cannon Nanosword Vortex Lance (40) Peak State ------------ > --- POWER ------------ Light Quantum Reactor Vortex Chain Reactor > --- PROPULSION ------- Antigrav System Cooled Antigrav System Experimental Gyrokinetic Inverter Combat Linear Gravjet Combat Linear Gravjet Combat Linear Gravjet Combat Linear Gravjet Combat Linear Gravjet > --- UTILITY ---------- Advanced Heat Sink Medium Storage Unit Advanced Signal Interpreter Advanced Melee Analysis Suite Experimental Melee Analysis Suite Improved Armor Integrity Analyzer Improved Reaction Control System Improved Phase Shifter Improved Cloaking Device Centrium Light Armor Plating Improved Force Field Improved Hacking Suite > --- WEAPON ----------- Nanosword Vortex Lance > --- INVENTORY -------- Advanced Power Amplifier Gravity Neutralizer Advanced Hacking Suite System Shield Improved System Shield Advanced Variable Charge Gun Latent Energy Streamer Enhanced Nova Cannon Vortex Catalyst Activator [Rating: 195] Favorites ----------- Power Quantum Reactor Engine Heavy Ion Engine Power Core Enhanced Nuclear Core Reactor Quantum Reactor Propulsion Improved Treads Treads Improved Treads Leg Carbon-fiber Leg Wheel Wheel Hover Unit Combat Linear Gravjet Utility Advanced Targeting Computer Device Advanced Cooling System Storage Large Storage Unit Processor Advanced Targeting Computer Hackware Improved Hacking Suite Protection Centrium Medium Armor Plating Weapon Long-range Proton Cannon Energy Gun Gamma Rifle Energy Cannon Long-range Proton Cannon Ballistic Gun Gauss Rifle Ballistic Cannon Antimatter Cannon Launcher Improved Proton Missile Launcher Special Weapon Improved Plasma Cutter Impact Weapon Maul Slashing Weapon Nanosword Piercing Weapon Vortex Lance Build | -11 -10 -10 -9 -9 -9 -8 -8 -7 -6 -6 -6 -6 -5 -5 -5 -5 -5 -5 -5 -4 -4 -4 -4 -3 -3 -3 -2 -1 ------- Run | Jun Mat Min Mat Min Exi Min Mat Fac Fac Low Low Dat Pro Fac Gar Ext Cet Arc Hub Fac Upp Upp War Pro Res Arm Res Acc Slots Evolved 18 | . . . 2 . . . 2 2 2 . . . . 2 . . . . . 2 . . . . 2 . 2 2 Power 2 | . . . . . . . 1 . . . . . . 1 . . . . . . . . . . . . . . Propulsion 6 | . . . 1 . . . . . 1 . . . . . . . . . . . . . . . 2 . 1 1 Utility 10 | . . . 1 . . . 1 2 1 . . . . 1 . . . . . 2 . . . . . . 1 1 Weapon . | . . . . . . . . . . . . . . . . . . . . . . . . . . . . . Parts Attached 434 | 6 2 1 18 . 1 2 9 34 13 16 6 2 2 32 14 25 16 . 10 21 9 3 9 17 50 80 29 7 Power 52 | 1 . . 4 . . . 2 7 . 2 . . . 4 1 8 2 . 1 2 3 . . 1 3 10 1 . Engine 19 | 1 . . 4 . . . 2 4 . 1 . . . . 1 6 . . . . . . . . . . . . Core 13 | . . . . . . . . 3 . 1 . . . 4 . 2 . . . 1 2 . . . . . . . Reactor 20 | . . . . . . . . . . . . . . . . . 2 . 1 1 1 . . 1 3 10 1 . Propulsion 68 | 2 . 1 9 . . . . 7 . 3 3 . . 12 5 1 2 . . . . . . 5 2 13 1 2 Treads 52 | . . 1 9 . . . . 7 . 1 3 . . 12 5 . 2 . . . . . . 5 2 5 . . Leg 2 | . . . . . . . . . . 2 . . . . . . . . . . . . . . . . . . Wheel 3 | 2 . . . . . . . . . . . . . . . 1 . . . . . . . . . . . . Hover 11 | . . . . . . . . . . . . . . . . . . . . . . . . . . 8 1 2 Flight . | . . . . . . . . . . . . . . . . . . . . . . . . . . . . . Utility 182 | 1 2 . 3 . . . 3 9 5 4 1 . 2 12 3 14 2 . 3 9 1 . 7 9 23 40 25 4 Device 100 | . . . 2 . . . 2 3 3 3 1 . 2 8 2 9 . . . 6 . . 4 4 10 25 15 1 Storage 11 | 1 1 . . . . . . . . . . . . 1 . . . . . . . . 1 3 2 1 1 . Processor 28 | . 1 . 1 . . . 1 1 . 1 . . . . . . . . 3 . . . 2 . 1 10 7 . Hackware 5 | . . . . . . . . . . . . . . 1 . . . . . . . . . . . 1 . 3 Protection 38 | . . . . . . . . 5 2 . . . . 2 1 5 2 . . 3 1 . . 2 10 3 2 . Artifact . | . . . . . . . . . . . . . . . . . . . . . . . . . . . . . Weapon 132 | 2 . . 2 . 1 2 4 11 8 7 2 2 . 4 5 2 10 . 6 10 5 3 2 2 22 17 2 1 Energy Gun 15 | . . . . . . . . 1 . . . . . . . 1 1 . 1 1 . . . . 8 2 . . Energy Cannon 47 | . . . 2 . 1 1 1 7 4 . . . . . 1 . 6 . 2 7 4 2 2 1 6 . . . Ballistic Gun 27 | 2 . . . . . . 2 3 2 5 1 2 . . . . . . . . . . . . . 10 . . Ballistic Cannon 14 | . . . . . . . . . . . . . . 3 2 1 . . . . . . . . 5 3 . . Launcher 16 | . . . . . . 1 . . 1 2 . . . 1 1 . 3 . 1 1 1 1 . 1 1 . . 1 Special Weapon 1 | . . . . . . . . . . . . . . . 1 . . . . . . . . . . . . . Impact Weapon 1 | . . . . . . . 1 . . . . . . . . . . . . . . . . . . . . . Slashing Weapon 9 | . . . . . . . . . 1 . 1 . . . . . . . 2 1 . . . . 1 1 2 . Piercing Weapon 2 | . . . . . . . . . . . . . . . . . . . . . . . . . 1 1 . . Special Melee Weapon . | . . . . . . . . . . . . . . . . . . . . . . . . . . . . . Unidentified Prototypes 35 | . . . . . . . . 2 . . . . . 2 . . 3 . 1 3 . . 5 . 4 9 4 2 Corrupted Parts 19 | . . . . . . . 1 3 . 2 . . 1 . . . 2 . 2 . 1 . . 6 . . 1 . System Corruption 119 | . . . . . . . 10 14 . 16 . . 5 . . . 14 . 11 . 6 . . 36 . . 7 . Parts Lost 68 | . . 1 1 . . . 1 2 5 7 1 . . 4 9 5 . . . . . . . 2 8 22 . . Power 12 | . . . 1 . . . 1 . . 2 . . . 1 1 3 . . . . . . . 1 . 2 . . Propulsion 11 | . . 1 . . . . . 1 1 1 1 . . . 1 . . . . . . . . . . 5 . . Utility 35 | . . . . . . . . 1 2 3 . . . 3 5 1 . . . . . . . 1 6 13 . . Weapon 10 | . . . . . . . . . 2 1 . . . . 2 1 . . . . . . . . 2 2 . . Highest Loss Streak 12 | . . 1 1 . . . 1 1 3 4 1 . . 2 4 3 . . . . . . . 1 2 12 . . To Critical Strikes . | . . . . . . . . . . . . . . . . . . . . . . . . . . . . . Average Slot Usage (%) 89 | . 92 100 99 100 100 100 99 93 92 93 99 86 100 89 79 89 90 88 87 88 85 84 83 84 80 77 93 94 Engine 4 | . 14 14 11 11 11 11 17 9 6 5 6 6 6 2 1 10 8 5 . . . . . . . . . . Core 3 | . . . . . . . . 4 6 5 6 6 6 12 13 5 . . . . 3 5 5 5 2 . . . Reactor 4 | . . . . . . . . . . . . . . . . . 6 11 16 14 11 10 10 9 10 12 8 8 Treads 17 | . . 12 31 33 33 33 27 23 19 12 19 26 26 20 19 22 14 11 11 10 10 10 10 9 14 11 . . Hover 1 | . . . . . . . . . . . . . . . . . . . . . . . . . . 2 28 30 Device 19 | . . . 8 11 11 11 18 14 20 29 26 26 26 20 13 21 26 23 17 20 21 21 20 20 19 20 25 21 Storage 6 | . 14 14 11 11 11 11 9 7 6 6 6 6 6 5 5 5 5 5 5 5 5 5 5 5 4 5 3 4 Processor 8 | . 7 14 13 11 11 11 9 7 6 7 13 13 13 5 1 . . . 10 10 10 10 12 15 9 10 16 14 Protection 5 | . . . . . . . . 8 11 1 . . . 4 3 4 12 17 11 14 11 10 7 5 8 . 1 2 Energy Cannon 5 | . . . 21 22 22 21 11 4 11 . . . . . . . 7 11 7 8 9 9 9 10 2 . . . Ballistic Gun 3 | . 28 28 . . . . 5 10 1 12 12 . 13 1 . . . . . . . . . . . 3 . . Ballistic Cannon 2 | . . . . . . . . . . . . . . 9 7 7 . . . . . . . . 3 4 . . Naked Turns . | . . . . . . . . . . . . . . . . . . . . . . . . . . . . . Heaviest Build 216 | 13 28 28 38 38 38 38 50 84 79 67 53 53 53 97 97 113 131 131 135 156 165 157 157 154 199 216 88 98 Greatest Support 240 | 20 20 10 69 69 69 69 69 71 68 48 104 104 104 124 124 108 160 160 160 160 160 160 160 160 220 240 106 108 Greatest Overweight (x) 4 | . 1 2 3 . . . . 1 1 2 1 . . . . 4 3 . . . 1 . . 2 . 1 . . Average Overweight (x) . | . . 2 . . . . . . . 1 . . . . . . . . . . . . . . . . . . Largest Inventory Capacity 25 | 8 15 15 15 15 15 15 15 15 15 15 15 15 15 20 20 20 20 20 20 20 20 20 20 20 25 25 10 10 Average Capacity 17 | 7 14 15 15 15 15 15 15 15 15 15 15 15 15 15 20 20 20 20 20 20 20 20 20 20 22 22 9 10 Most Carried 25 | 6 15 15 15 15 15 15 15 15 15 13 15 15 15 18 18 20 20 20 20 20 20 20 20 20 25 25 10 10 Average Carried 16 | 2 10 14 14 15 14 14 14 14 14 10 14 15 15 14 14 16 19 20 19 19 19 19 19 19 21 21 8 8 Final Capacity 25 | 8 15 15 15 15 15 15 15 15 15 15 15 15 15 20 20 20 20 20 20 20 20 20 20 20 25 5 10 10 Final Carried 25 | 6 15 15 15 15 15 15 15 15 12 13 15 15 15 18 13 19 20 20 20 20 20 20 20 18 25 5 10 8 Class Distribution -------------------- 50% | Scavenger-Mutant 46% | Mutant Dominant Class ---------------- Mutant | -10/Materials Mutant | -10/Mines Mutant | -9/Materials Mutant | -9/Mines Mutant | -9/Exiles Mutant | -8/Mines Mutant | -8/Materials Mutant | -7/Factory Mutant | -6/Factory Scavenger-Mutant | -6/Lower Caves Scavenger-Mutant | -6/Lower Caves Scavenger-Mutant | -6/Data Miner Scavenger-Mutant | -5/Proximity Caves Mutant | -5/Factory Mutant | -5/Garrison Scavenger-Mutant | -5/Extension Scavenger-Mutant | -5/Cetus Scavenger-Mutant | -5/Archives Scavenger-Mutant | -5/Hub_04(d) Scavenger-Mutant | -4/Factory Scavenger-Mutant | -4/Upper Caves Scavenger-Mutant | -4/Upper Caves Scavenger-Mutant | -4/Warlord Scavenger-Mutant | -3/Proximity Caves Scavenger-Mutant | -3/Research Mutant | -3/Armory Scavenger-Mutant | -2/Research Hacker-Mutant | -1/Access Resources | -11 -10 -10 -9 -9 -9 -8 -8 -7 -6 -6 -6 -6 -5 -5 -5 -5 -5 -5 -5 -4 -4 -4 -4 -3 -3 -3 -2 -1 ----------- Run | Jun Mat Min Mat Min Exi Min Mat Fac Fac Low Low Dat Pro Fac Gar Ext Cet Arc Hub Fac Upp Upp War Pro Res Arm Res Acc Matter Collected 11859 | 237 99 33 222 . . 23 296 1033 140 301 207 . 171 1017 478 1032 259 . 215 273 280 100 286 431 1518 2715 423 70 Remotely 1979 | . . . . . . . . . . . . . . 492 311 212 . . . . . . . . . 964 . . Salvage Created 17615 | 21 99 27 996 . . . 599 2026 459 721 356 . 205 953 397 309 322 313 573 1642 513 383 97 1169 2746 2217 190 282 Parts 820 | 3 3 3 59 . . 6 23 104 25 25 12 . 5 54 15 10 11 11 18 63 25 18 . 58 125 120 12 12 Haulers Intercepted 10 | . . . 2 . . . . 3 . . . . . . . . . . . 1 . . . . 2 . . 2 Recyclers Shooed 9 | . . . . . . . 1 . . . . . . 1 . 2 . . . 2 . . . . 3 . . . Parts Field Recycled . | . . . . . . . . . . . . . . . . . . . . . . . . . . . . . Retrieved Matter . | . . . . . . . . . . . . . . . . . . . . . . . . . . . . . Parts Self-Destructed 43 | . . . . . . . . . . 8 6 . 14 . . . . . . . 4 5 . 6 . . . . Prevented 78 | . . . . . . . . . . . . . . . . . . . . . 20 12 . 46 . . . . Kills | -11 -10 -10 -9 -9 -9 -8 -8 -7 -6 -6 -6 -6 -5 -5 -5 -5 -5 -5 -5 -4 -4 -4 -4 -3 -3 -3 -2 -1 ------- Run | Jun Mat Min Mat Min Exi Min Mat Fac Fac Low Low Dat Pro Fac Gar Ext Cet Arc Hub Fac Upp Upp War Pro Res Arm Res Acc Combat Hostiles Destroyed 298 | . 2 2 16 . . 3 9 31 7 12 5 . 3 34 15 8 5 3 3 21 10 8 1 17 38 38 2 5 Melee 7 | . . . . . . . . . . . . . . . 1 . . . 1 2 . . . . 1 . 2 . Guns 61 | . 2 2 . . . . 2 15 . 4 5 . 3 . . . . . . . . . . . 8 20 . . Cannons 130 | . . . 16 . . . 7 12 2 . . . . 28 6 8 3 . . 4 3 2 1 6 19 13 . . AOE 58 | . . . . . . 3 . 1 5 7 . . . 6 8 . 1 . . 9 4 3 . 4 2 . . 5 Classes Destroyed 20 | 1 1 1 5 . . . 2 4 1 1 . . . 1 1 . . . . . . . . . . 2 . . Worker 8 | . . . 3 . . . 1 . 2 . . . . 1 . . . . 1 . . . . . . . . . Builder 6 | . . . . . . . . 3 . . . . . 1 . . . . . . . . . . 1 . 1 . Tunneler 3 | 1 . . . . . . . . . . . . . . . . . . . . . . . . 1 . . 1 Hauler 10 | . . . 2 . . . . 3 . . . . . . . . . . . 1 . . . . 2 . . 2 Recycler 9 | . . . 1 . . . 1 3 . . . . . . . . . . 1 2 . . . . 1 . . . Operator 3 | . . . . . . . . . 1 . . . . . . . . . . . . . . . 1 . . 1 Watcher 21 | . . . 3 . . . . 2 . . . . . 2 . . 2 . 3 2 . . . . 4 1 2 . Swarmer 53 | . . 2 3 . . 3 . 6 . . . . . 4 . 3 2 . . 5 2 4 . 5 5 3 1 5 Cutter 4 | . . . . . . . . . . . . . . . 4 . . . . . . . . . . . . . Saboteur 2 | . . . . . . . . . . . . . . . . . . . . . . . . . . 2 . . Grunt 98 | . 2 . 7 . . . 6 12 5 5 2 . 2 12 8 3 1 . . 7 5 2 . 3 10 6 . . Brawler 8 | . . . . . . . 1 . . . . . 1 1 2 1 . . . 1 . . . 1 . . . . Duelist 9 | . . . . . . . . 1 . . 1 . . . . . . . . 1 . . . . . 6 . . Sentry 32 | . . . 6 . . . . 4 1 . 1 . . 3 . 1 . 3 2 . 1 . . 1 6 2 1 . Specialist 2 | . . . . . . . . . . . . . . . . . . . . . . . . . . 2 . . Hunter 25 | . . . . . . . 2 1 . . . . . 2 1 . 1 . . 4 . 2 1 6 2 3 . . Programmer 50 | . . . . . . . . 6 1 . . . . 11 . . . . 1 2 1 . . . 15 13 . . Heavy 2 | . . . . . . . . 1 . . . . . . . . . . . . . . . . . 1 . . Behemoth 4 | . . . . . . . . . . . . . . 1 . . . . . 1 1 . . 1 . . . . Cetus Guard 1 | . . . . . . . . . . . . . . . . . 1 . . . . . . . . . . . Enhanced Grunt 1 | . . . . . . . . . . . . . . . . . . . 1 . . . . . . . . . Decomposer 1 | . . . . . . . . . . . 1 . . . . . . . . . . . . . . . . . Thug 6 | . . . . . . . . . . 6 . . . . . . . . . . . . . . . . . . Mutant 2 | . . . . . . . . . . 1 1 . . . . . . . . . . . . . . . . . Best Kill Streak 12 | 1 2 2 6 . . 3 4 6 3 6 3 . 2 9 12 3 3 3 2 7 4 6 1 5 7 5 1 6 Combat Bots Only 12 | . 2 2 4 . . 3 3 5 3 6 3 . 2 9 12 3 3 3 1 6 5 6 1 5 7 5 1 5 Max Kills in Single Turn 6 | 1 1 1 1 . . 3 2 2 3 2 2 . 1 4 2 1 1 1 2 3 1 3 1 4 2 2 1 6 Gunslinging 1 | . . . . . . . . . . . . . . . . . . . . . . . . . . 1 . . Exploded 5 | . . . . . . 3 . 1 2 2 . . . 4 2 . 1 . . 3 1 3 . 4 1 . . 5 Melee 1 | . . . . . . . . . . . . . . . 1 . . . 1 1 . . . . 1 . 1 . Uniques/NPCs Destroyed . | . . . . . . . . . . . . . . . . . . . . . . . . . . . . . Combat | -11 -10 -10 -9 -9 -9 -8 -8 -7 -6 -6 -6 -6 -5 -5 -5 -5 -5 -5 -5 -4 -4 -4 -4 -3 -3 -3 -2 -1 -------- Run | Jun Mat Min Mat Min Exi Min Mat Fac Fac Low Low Dat Pro Fac Gar Ext Cet Arc Hub Fac Upp Upp War Pro Res Arm Res Acc Damage Taken 23245 | . 210 39 419 . . 66 179 2139 753 844 193 . 209 2112 2290 822 357 70 360 719 461 105 495 881 2955 6466 61 40 Core 1808 | . 78 6 22 . . 11 18 159 34 68 . . 76 147 298 35 33 . 45 39 17 . 44 45 129 492 12 . Absorbed by Shields 5234 | . . . . . . . 72 414 . . . . . 869 . 73 201 . . 232 477 110 263 822 795 801 64 41 Reduced by Siege Mode 467 | . . . . . . . . . . . . . . . . . . . . 4 . . . 45 102 316 . . Redirected to Shielding 46 | . . . . . . . . . . . . . . . . . . . . . . . . . . 46 . . Regen/Repaired (Parts) 222 | . . . . . . . . . . . . . . . . . . . . . . . 222 . . . . . Core Remaining (%) 81 | 100 . 66 . . . 91 96 77 . . . . 79 . . . . . 44 . . . . 87 . 52 99 100 Volleys Fired 909 | 2 15 4 51 1 . 3 25 117 18 27 9 . 17 95 43 41 16 10 19 45 26 9 2 37 142 132 . 3 Largest 2 | 2 2 2 2 2 . 1 2 2 2 2 2 . 2 2 2 2 2 2 2 2 2 2 2 2 2 2 . 1 Hottest 240 | 40 40 40 136 136 . 33 136 144 144 58 66 . 66 80 121 126 240 156 162 162 169 169 169 169 180 150 . 20 Shots Fired 1630 | 4 30 8 101 2 . 4 50 230 23 44 20 . 31 175 63 70 25 16 29 82 41 16 4 73 235 251 . 3 Gun 568 | 4 30 8 . . . . 25 150 . 32 20 . 31 . . 6 1 . 4 . . . . . 87 170 . . Cannon 1003 | . . . 101 2 . 1 25 80 16 . . . . 175 55 55 23 16 23 80 34 15 4 72 145 81 . . Launcher 49 | . . . . . . 3 . . 7 12 . . . . 7 . 1 . 2 2 7 1 . 1 3 . . 3 Special 10 | . . . . . . . . . . . . . . . 1 9 . . . . . . . . . . . . Kinetic 896 | 4 30 8 . . . . 25 150 . 32 20 . 31 175 47 55 1 . . . . . . . 91 227 . . Thermal 228 | . . . 101 2 . 1 25 16 10 . . . . . 1 15 1 . 6 6 4 . . . 40 . . . Explosive 29 | . . . . . . 3 . . . 3 . . . . 7 . . . 2 2 7 1 . 1 3 . . . Electromagnetic 474 | . . . . . . . . 64 13 9 . . . . 8 . 23 16 21 74 30 15 4 72 101 24 . . Entropic 3 | . . . . . . . . . . . . . . . . . . . . . . . . . . . . 3 Robot Hit Streak 35 | 1 21 1 14 3 . 1 10 22 27 18 23 . 4 23 11 6 14 8 8 17 17 9 1 12 30 35 . 4 Robot Miss Streak 8 | 2 2 2 3 . . 1 3 4 1 1 . . 8 3 5 3 3 1 1 3 2 1 1 4 3 4 . . Penetration Max 2 | . . . . . . . 1 1 . . . . 1 . . 1 . . . . . . . . . 2 . . Secondary Targets 10 | . . . . . . . . 3 . . . . 1 . . . . . . . . . . . 1 5 . . Max Gunslinging Chain 1 | . . . . . . . . 1 . . . . 1 . . . . . . . . . . . 1 1 . . Shots Hit Robots 1151 | 1 25 3 69 2 . 1 30 165 14 37 13 . 15 101 31 44 13 15 21 61 29 12 2 53 185 191 10 8 Core Hits 573 | 1 5 2 28 . . 4 23 60 20 28 9 . 8 54 30 20 11 2 12 37 21 7 1 24 81 75 2 8 Critical Kills 12 | . . . . . . . . 3 . . . . 1 . . . . . . . . . . . . 8 . . Critical Parts Destroyed 24 | . . . . . . . . 1 . 1 . . . . . . . . . . . . . . . 22 . . Critical Strikes 88 | . . . . . . . . 4 . 1 . . 1 7 4 9 2 . 1 1 . . . 1 13 44 . . Meltdown 1 | . . . . . . . . 1 . . . . . . . . . . . . . . . . . . . . Destroy 44 | . . . . . . . . 3 . 1 . . 1 . . . . . . . . . . . . 39 . . Blast 33 | . . . . . . . . . . . . . . 7 4 9 1 . . . . . . . 7 5 . . Corrupt 9 | . . . . . . . . . . . . . . . . . 1 . . 1 . . . 1 6 . . . Sever 1 | . . . . . . . . . . . . . . . . . . . 1 . . . . . . . . . Melee Attacks 67 | . . . . . . . 3 . 1 . 2 . . . . . . . 5 9 . . . . . 1 22 24 Impact 3 | . . . . . . . 3 . . . . . . . . . . . . . . . . . . . . . Slashing 57 | . . . . . . . . . 1 . 2 . . . . . . . 5 9 . . . . . 1 18 21 Piercing . | . . . . . . . . . . . . . . . . . . . . . . . . . . . . . Entropic 7 | . . . . . . . . . . . . . . . . . . . . . . . . . . . 4 3 Sneak Attacks 7 | . . . . . . . . . . . . . . . . . . . 1 . . . . . . . 3 3 Combat Hostiles 1 | . . . . . . . . . . . . . . . . . . . . . . . . . . . 1 . Follow-up Attacks . | . . . . . . . . . . . . . . . . . . . . . . . . . . . . . Damage Inflicted 46933 | 20 253 50 1480 40 . 294 723 4011 1183 1449 349 . 422 5425 2165 1561 1030 454 1193 3294 1548 710 75 2077 7969 6540 868 1750 Guns 9962 | 20 253 50 . . . . 244 2169 . 541 349 . 422 . . 56 . . . . . . . . 1955 3903 . . Cannons 24867 | . . . 1480 40 . . 357 1762 366 . . . . 4018 868 1453 536 454 689 1817 873 449 75 1750 5254 2626 . . Explosions 9712 | . . . . . . 294 122 65 817 908 . . . 1390 1247 . 494 . 284 1199 675 261 . 327 646 . . 983 Melee 2129 | . . . . . . . . . . . . . . . . . . . 216 278 . . . . . . 868 767 Ramming 212 | . . . . . . . . 15 . . . . . 17 50 1 . . 4 . . . . . 114 11 . . Kinetic 19448 | 20 253 50 . . . . 244 2169 . 541 349 . 422 4018 720 1453 38 . . . . . . . 3194 5977 . . Thermal 6822 | . . . 1480 40 . . 357 458 595 167 . . . 1064 . 107 380 . . 408 178 . . . 1588 . . . Explosive 4719 | . . . . . . 294 . . . 309 . . . 326 1247 . . . . 723 675 261 . 327 557 . . . Electromagnetic 12620 | . . . . . . . 122 1369 588 432 . . . . 148 . 612 454 973 1885 695 449 75 1750 2516 552 . . Impact . | . . . . . . . . . . . . . . . . . . . . . . . . . . . . . Slashing 2129 | . . . . . . . . . . . . . . . . . . . 216 278 . . . . . . 868 767 Piercing . | . . . . . . . . . . . . . . . . . . . . . . . . . . . . . Entropic 983 | . . . . . . . . . . . . . . . . . . . . . . . . . . . . 983 Highest Corruption 36 | . 2 2 4 4 4 4 10 20 2 18 18 18 23 4 9 9 23 23 35 2 9 9 9 36 12 32 11 . Average Corruption 9 | . 2 2 3 4 4 4 10 4 1 13 18 18 18 3 7 9 14 23 29 1 6 9 9 23 6 21 10 . Corruption Purged . | . . . . . . . . . . . . . . . . . . . . . . . . . . . . . Corruption Blocked 34 | . . . . . . . . . . . . . . . . . . . . . . . 6 . . . 28 . Effects 617 | . . 2 22 6 11 12 15 61 7 31 28 6 19 36 13 40 40 9 32 5 18 14 1 13 61 104 11 . Message Errors 155 | . . . 6 1 4 1 6 17 4 9 7 1 5 16 5 11 11 2 5 2 5 3 . 4 8 21 1 . Matter Fused 134 | . . . 7 2 3 1 2 13 1 7 4 1 2 4 1 9 6 1 9 2 1 7 . 1 18 27 5 . Heat Flow Errors 88 | . . 1 2 1 1 2 1 9 . 3 6 1 2 2 1 6 5 . 9 . 4 1 . 4 7 18 2 . Energy Discharges 71 | . . . 1 1 . 3 4 7 . 5 1 2 4 3 2 7 4 . 2 . 4 1 1 1 10 6 2 . Parts Rejected 8 | . . . 2 . . . . 1 . . . . . . 1 . 1 . . . . . . . . 3 . . Parts Fused 6 | . . . . . 1 . . . . . . . . 1 . 1 . . . . 1 . . . 1 1 . . Data Loss (minor) 66 | . . . 1 1 2 3 2 5 2 5 5 . 2 6 . 1 6 1 2 . 1 2 . 1 6 11 1 . Data Loss (major) 23 | . . 1 . . . . . 3 . 1 3 . . . . 1 3 1 2 . . . . 1 5 2 . . Misfires 24 | . . . 1 . . 1 . 2 . 1 2 . . 3 . 3 2 1 1 1 1 . . 1 2 2 . . Alerts 16 | . . . . . . 1 . 3 . . . 1 1 1 2 . . . 1 . . . . . 3 3 . . Misdirections 2 | . . . . . . . . . . . . . . . . . 1 . . . . . . . . 1 . . Weapon Failures 24 | . . . 2 . . . . 1 . . . . 3 . 1 1 1 3 1 . 1 . . . 1 9 . . Overload Shots 1 | . . . . . . . . . . . . . . . . . 1 . . . . . . . . . . . Overflow Damage 1861 | . . . 13 . . 24 . 38 111 12 . . . 338 26 2 43 . 195 149 33 . . . 228 110 330 209 Projectiles 726 | . . . 13 . . . . 38 . . . . . 140 7 2 43 . 167 18 5 . . . 183 110 . . Explosions 600 | . . . . . . 24 . . 111 12 . . . 196 19 . . . 2 107 28 . . . 32 . . 69 Melee 535 | . . . . . . . . . . . . . . 2 . . . . 26 24 . . . . 13 . 330 140 Knockbacks 87 | . . . . . . . . . . . . . . 26 6 9 . . . . . . . . 32 14 . . Impact . | . . . . . . . . . . . . . . . . . . . . . . . . . . . . . Kinetic 76 | . . . . . . . . . . . . . . 25 5 9 . . . . . . . . 23 14 . . Secondary 11 | . . . . . . . . . . . . . . 1 1 . . . . . . . . . 9 . . . Self-Inflicted Damage 1309 | . . . . . . 35 69 . 228 171 . . . 255 260 . 16 . 53 67 55 54 . . 46 . . . Shots 25 | . . . . . . 1 2 . 3 5 . . . 4 4 . 1 . 1 1 1 1 . . 1 . . . Rammed 21 | . . . . . . . . 3 . . . . . 1 9 1 . . 1 . . . . . 5 1 . . Targets Rammed 23 | . . . . . . . . 3 . . . . . 1 10 1 . . 1 . . . . . 6 1 . . Kicked . | . . . . . . . . . . . . . . . . . . . . . . . . . . . . . Crushed 2 | . . . . . . . . . . . . . . . 1 . . . . . . . . . 1 . . . Highest Temperature 709 | . 18 183 243 119 223 219 200 261 . 270 128 232 247 237 709 419 228 137 318 303 154 201 . 150 226 348 272 236 Average Temperature 94 | . 8 93 53 39 118 98 118 104 . 105 63 117 97 36 333 123 77 72 100 81 94 111 . 63 43 105 35 74 Received Heat Transfer 3500 | . 117 . 222 . . . 36 305 141 321 72 . 120 308 630 133 12 . 27 102 51 . 28 88 319 464 4 . Effects 33 | . . . . . . . . . . . . . . . 26 3 . . . 3 . . . . . 1 . . Shutdowns 16 | . . . . . . . . . . . . . . . 12 3 . . . . . . . . . 1 . . Energy Bleed 3 | . . . . . . . . . . . . . . . 3 . . . . . . . . . . . . . Interference 9 | . . . . . . . . . . . . . . . 6 . . . . 3 . . . . . . . . Matter Decay 2 | . . . . . . . . . . . . . . . 2 . . . . . . . . . . . . . Short Circuit 2 | . . . . . . . . . . . . . . . 2 . . . . . . . . . . . . . Damage (core) 1 | . . . . . . . . . . . . . . . 1 . . . . . . . . . . . . . Siege Activations 21 | . . . . . . . . . . . . . . . . . . . . 2 2 2 . 4 5 6 . . Total Turns 345 | . . . . . . . . . . . . . . . . . . . . 36 29 32 . 74 107 67 . . Longest Duration 57 | . . . . . . . . . . . . . . . . . . . . 23 17 27 . 28 57 17 . . Robots Corrupted 45 | . . . . . . . . 3 . 1 . . . . . . 1 3 3 6 3 3 . 7 10 5 . . Combat Hostiles 41 | . . . . . . . . 2 . 1 . . . . . . 1 3 2 6 3 3 . 7 8 5 . . Parts Fried 92 | . . . . . . . . 11 2 2 . . . . . . 4 1 9 15 3 3 1 17 22 2 . . Impact Corruptions 5 | . . . . . . . . . . . . . . 1 . . . . . . . . . . 4 . . . Robots Melted 1 | . . . . . . . . 1 . . . . . . . . . . . . . . . . . . . . Combat Hostiles 1 | . . . . . . . . 1 . . . . . . . . . . . . . . . . . . . . Parts Melted 15 | . . . 4 . . . 1 3 . . 2 . . 1 . 2 . . . . . . . . 2 . . . Heat Transferred 7672 | . . . 2627 74 . . 629 605 609 150 . . . 600 . 222 350 . . 250 148 . . . 1408 . . . Parts Sabotaged 6 | . . . . . . . . . . . . . . . . . . . . . . . . . . 6 . . Parts Stolen . | . . . . . . . . . . . . . . . . . . . . . . . . . . . . . Parts Stripped . | . . . . . . . . . . . . . . . . . . . . . . . . . . . . . Power Chain Reactions 11 | . . . . . . . 1 1 4 1 . . . . . . 1 . . 2 . . . . 1 . . . Missiles Intercepted . | . . . . . . . . . . . . . . . . . . . . . . . . . . . . . Alert | -11 -10 -10 -9 -9 -9 -8 -8 -7 -6 -6 -6 -6 -5 -5 -5 -5 -5 -5 -5 -4 -4 -4 -4 -3 -3 -3 -2 -1 ------- Run | Jun Mat Min Mat Min Exi Min Mat Fac Fac Low Low Dat Pro Fac Gar Ext Cet Arc Hub Fac Upp Upp War Pro Res Arm Res Acc Peak Influence 1385 | 5 102 79 370 78 . 96 392 859 477 . . . . 937 1012 947 1385 606 775 793 . . . . 511 865 480 632 Initial 623 | . 3 39 30 78 . . . 109 420 . . . . 435 623 531 529 502 212 313 . . . . 33 268 426 164 Average 362 | . 40 78 126 78 . 77 111 248 153 . . . . 527 835 639 912 579 446 607 . . . . 157 460 370 285 Maximum Alert Level 4 | . . . 1 . . . 1 3 2 . . . . 3 3 3 4 2 3 3 . . . . 2 3 2 2 Low Security (%) 35 | 100 100 100 74 100 . 100 69 42 76 . . . . 4 . . . . . . . . . . 76 2 . 51 Level 1 24 | . . . 25 . . . 30 41 . . . . . 18 . . . . 43 18 . . . . 11 52 54 44 Level 2 27 | . . . . . . . . 11 23 . . . . 59 37 77 27 100 55 45 . . . . 12 18 45 4 Level 3 12 | . . . . . . . . 4 . . . . . 17 62 22 39 . 1 35 . . . . . 26 . . Level 4 1 | . . . . . . . . . . . . . . . . . 33 . . . . . . . . . . . Level 5 . | . . . . . . . . . . . . . . . . . . . . . . . . . . . . . High Security . | . . . . . . . . . . . . . . . . . . . . . . . . . . . . . Max Security . | . . . . . . . . . . . . . . . . . . . . . . . . . . . . . Squads Dispatched 56 | . . . 1 . . . 4 12 2 . . . . 12 . . . . 1 4 . . . . 10 7 . 3 Investigation 7 | . . . 1 . . . . 3 . . . . . 2 . . . . . . . . . . . . . 1 Extermination 24 | . . . . . . . . 6 1 . . . . 4 . . . . 1 1 . . . . 6 4 . 1 Reinforcement 12 | . . . . . . . 2 2 1 . . . . 1 . . . . . 2 . . . . 1 3 . . Assault 5 | . . . . . . . . 1 . . . . . 2 . . . . . 1 . . . . . . . 1 Garrison 8 | . . . . . . . 2 . . . . . . 3 . . . . . . . . . . 3 . . . Intercept . | . . . . . . . . . . . . . . . . . . . . . . . . . . . . . Searches Triggered 1 | . . . . . . . . . . . . . . 1 . . . . . . . . . . . . . . Data Miner Redirects 4 | . . . . . . . . . . . . . . 2 . . . . . . . . . . . . . 2 Construction Impeded 3 | . . . . . . . . . 1 . . . . . . . . . . 1 . . . . 1 . . . Haulers Reinforced 1 | . . . . . . . . . . . . . . . . . . . . 1 . . . . . . . . Active Scanning Responses . | . . . . . . . . . . . . . . . . . . . . . . . . . . . . . Cargo Convoy Interrupts . | . . . . . . . . . . . . . . . . . . . . . . . . . . . . . Stealth | -11 -10 -10 -9 -9 -9 -8 -8 -7 -6 -6 -6 -6 -5 -5 -5 -5 -5 -5 -5 -4 -4 -4 -4 -3 -3 -3 -2 -1 --------- Run | Jun Mat Min Mat Min Exi Min Mat Fac Fac Low Low Dat Pro Fac Gar Ext Cet Arc Hub Fac Upp Upp War Pro Res Arm Res Acc Distress Signals 23 | . . . 2 . . . 2 . . . . . . . . 2 2 . . 2 . . 1 . 5 1 6 . Communications Jammed 10 | . . . . . . . . . 8 . . . . . . . . . . . . . . . . 2 . . Distress Signals 9 | . . . . . . . . . 8 . . . . . . . . . . . . . . . . 1 . . Times Spotted 448 | . 4 2 31 . . 3 16 42 11 12 6 . 10 44 18 25 24 7 9 23 9 8 12 16 48 55 7 6 Peak Tracking Total 10 | . 2 2 9 . . 3 4 4 4 6 3 . 3 5 10 4 7 1 2 6 4 4 8 5 7 7 2 6 Tactical Retreats 29 | . . . 2 . . . 1 3 . . 1 . . 2 5 1 . . . . . 1 . . 1 11 1 . Traps | -11 -10 -10 -9 -9 -9 -8 -8 -7 -6 -6 -6 -6 -5 -5 -5 -5 -5 -5 -5 -4 -4 -4 -4 -3 -3 -3 -2 -1 ------- Run | Jun Mat Min Mat Min Exi Min Mat Fac Fac Low Low Dat Pro Fac Gar Ext Cet Arc Hub Fac Upp Upp War Pro Res Arm Res Acc Traps Triggered 17 | . 1 . 3 . . . . 3 1 . . . . 2 . . . . 1 1 . . . . 1 4 . . Indirectly 1 | . . . . . . . . . . . . . . . . . . . 1 . . . . . . . . . Trap Hack Attempts . | . . . . . . . . . . . . . . . . . . . . . . . . . . . . . Triggered . | . . . . . . . . . . . . . . . . . . . . . . . . . . . . . Disarmed . | . . . . . . . . . . . . . . . . . . . . . . . . . . . . . Reprogrammed . | . . . . . . . . . . . . . . . . . . . . . . . . . . . . . Reused . | . . . . . . . . . . . . . . . . . . . . . . . . . . . . . Traps Extracted . | . . . . . . . . . . . . . . . . . . . . . . . . . . . . . Installed . | . . . . . . . . . . . . . . . . . . . . . . . . . . . . . Triggered 16 | . . . . . . . . . . 1 . . . . . . . . . . . . 15 . . . . . Machines | -11 -10 -10 -9 -9 -9 -8 -8 -7 -6 -6 -6 -6 -5 -5 -5 -5 -5 -5 -5 -4 -4 -4 -4 -3 -3 -3 -2 -1 ---------- Run | Jun Mat Min Mat Min Exi Min Mat Fac Fac Low Low Dat Pro Fac Gar Ext Cet Arc Hub Fac Upp Upp War Pro Res Arm Res Acc Machines Disabled 56 | . . . 1 . . . 5 2 4 . 1 . . 11 . 4 5 . 1 16 . . . . . 2 . 4 Max in Single Turn 7 | . . . 1 . . . 1 1 4 . 1 . . 3 . 1 1 . 1 7 . . . . . 1 . 1 Garrison Access 4 | . . . . . . . . 2 . . . . . . . . . . . . . . . . . . 1 1 Network Hub 1 | . . . . . . . . . . . . . . . . . . . 1 . . . . . . . . . Energy Cycler 2 | . . . . . . . . . . . . . . . . 2 . . . . . . . . . . . . Machines Repaired . | . . . . . . . . . . . . . . . . . . . . . . . . . . . . . Machines Sabotaged . | . . . . . . . . . . . . . . . . . . . . . . . . . . . . . Overloaded Fab Kills . | . . . . . . . . . . . . . . . . . . . . . . . . . . . . . Hacking | -11 -10 -10 -9 -9 -9 -8 -8 -7 -6 -6 -6 -6 -5 -5 -5 -5 -5 -5 -5 -4 -4 -4 -4 -3 -3 -3 -2 -1 --------- Run | Jun Mat Min Mat Min Exi Min Mat Fac Fac Low Low Dat Pro Fac Gar Ext Cet Arc Hub Fac Upp Upp War Pro Res Arm Res Acc Machines Accessed 80 | . 5 . 8 . 2 . 3 12 4 1 . 4 . 11 . 2 1 . 1 3 . . 8 . 5 5 2 3 Terminals 41 | . 4 . 7 . . . 2 4 3 . . . . 5 . 2 1 . 1 3 . . . . 3 4 1 1 Fabricators 6 | . . . . . . . . 2 . . . . . 2 . . . . . . . . . . . 1 . 1 Repair Stations 2 | . . . . . . . . 1 . . . . . . . . . . . . . . . . 1 . . . Recycling Units 9 | . 1 . 1 . . . 1 3 1 . . . . 2 . . . . . . . . . . . . . . Scanalyzers . | . . . . . . . . . . . . . . . . . . . . . . . . . . . . . Garrison Access 7 | . . . . . . . . 2 . . . . . 2 . . . . . . . . . . 1 . 1 1 Total Hacks 216 | . 13 . 18 . 6 . 10 29 12 1 . 30 . 22 . 3 2 . 1 12 . . 13 . 16 15 6 7 Successful 100 | . 4 . 9 . 6 . 4 8 7 1 . 30 . 2 . 1 . . . 3 . . 13 . 5 5 1 1 Failed 116 | . 9 . 9 . . . 6 21 5 . . . . 20 . 2 2 . 1 9 . . . . 11 10 5 6 Catastrophic 24 | . . . 3 . . . 1 3 . . . . . 5 . 1 1 . 1 2 . . . . 2 2 1 2 Database Lockouts . | . . . . . . . . . . . . . . . . . . . . . . . . . . . . . Manual 67 | . 6 . 9 . 1 . 4 9 1 . . . . 13 . 2 1 . 1 5 . . 1 . 3 4 5 2 Terminals 110 | . 10 . 16 . . . 4 10 10 . . . . 12 . 3 2 . 1 12 . . . . 10 14 5 1 Fabricators 7 | . . . . . . . . 2 . . . . . 3 . . . . . . . . . . . 1 . 1 Repair Stations 7 | . . . . . . . . 3 . . . . . . . . . . . . . . . . 4 . . . Recycling Units 26 | . 3 . 2 . . . 6 10 2 . . . . 3 . . . . . . . . . . . . . . Scanalyzers . | . . . . . . . . . . . . . . . . . . . . . . . . . . . . . Garrison Access 16 | . . . . . . . . 4 . . . . . 4 . . . . . . . . . . 2 . 1 5 Terminal Hacks 79 | . 3 . 7 . 6 . . 2 5 1 . 30 . 1 . . . . . 3 . . 13 . 4 4 . . Record 22 | . . . . . 5 . . . . . . 11 . . . . . . . . . . 5 . 1 . . . Part Schematic 11 | . . . . . . . . . . . . 11 . . . . . . . . . . . . . . . . Robot Schematic 5 | . . . . . . . . . . . . 5 . . . . . . . . . . . . . . . . Robot Analysis 5 | . 1 . 3 . . . . . . . . . . . . . . . . . . . . . . 1 . . Prototype ID Bank 13 | . 1 . 2 . . . . . . . . 3 . . . . . . . . . . 6 . . 1 . . Open Door 3 | . . . . . . . . . . 1 . . . . . . . . . . . . 2 . . . . . Open DSF 1 | . . . . . . . . 1 . . . . . . . . . . . . . . . . . . . . Garrison Index 1 | . . . . . . . . . . . . . . . . . . . . 1 . . . . . . . . Alert Level 2 | . . . 1 . . . . . 1 . . . . . . . . . . . . . . . . . . . Unreport Threat 8 | . . . 1 . . . . . 2 . . . . 1 . . . . . 1 . . . . 2 1 . . Locate Traps 4 | . 1 . . . . . . 1 1 . . . . . . . . . . 1 . . . . . . . . Zone Layout 3 | . . . . . . . . . 1 . . . . . . . . . . . . . . . 1 1 . . EX-Prototype ID Bank 1 | . . . . . 1 . . . . . . . . . . . . . . . . . . . . . . . Fabricator Hacks 2 | . . . . . . . . 1 . . . . . . . . . . . . . . . . . 1 . . Build 2 | . . . . . . . . 1 . . . . . . . . . . . . . . . . . 1 . . Repair Station Hacks 1 | . . . . . . . . . . . . . . . . . . . . . . . . . 1 . . . Scan Component 1 | . . . . . . . . . . . . . . . . . . . . . . . . . 1 . . . Recycling Unit Hacks 10 | . 1 . 2 . . . 2 4 1 . . . . . . . . . . . . . . . . . . . Report Inventory 7 | . 1 . 1 . . . 1 3 1 . . . . . . . . . . . . . . . . . . . Retrieve Components 3 | . . . 1 . . . 1 1 . . . . . . . . . . . . . . . . . . . . Scanalyzer . | . . . . . . . . . . . . . . . . . . . . . . . . . . . . . Garrison Access Hacks 1 | . . . . . . . . . . . . . . 1 . . . . . . . . . . . . . . Unlock Access 1 | . . . . . . . . . . . . . . 1 . . . . . . . . . . . . . . Unauthorized Hacks 7 | . . . . . . . 2 1 1 . . . . . . 1 . . . . . . . . . . 1 1 Terminals 2 | . . . . . . . . . . . . . . . . 1 . . . . . . . . . . 1 . Operators 2 | . . . . . . . . . . . . . . . . 1 . . . . . . . . . . 1 . Fabricators 1 | . . . . . . . . . . . . . . . . . . . . . . . . . . . . 1 Fabnet 1 | . . . . . . . . . . . . . . . . . . . . . . . . . . . . 1 Repair Stations . | . . . . . . . . . . . . . . . . . . . . . . . . . . . . . Recycling Units 3 | . . . . . . . 2 . 1 . . . . . . . . . . . . . . . . . . . Reject 1 | . . . . . . . 1 . . . . . . . . . . . . . . . . . . . . . Recyclers 2 | . . . . . . . 1 . 1 . . . . . . . . . . . . . . . . . . . Scanalyzers . | . . . . . . . . . . . . . . . . . . . . . . . . . . . . . Garrison Access 1 | . . . . . . . . 1 . . . . . . . . . . . . . . . . . . . . Jam 1 | . . . . . . . . 1 . . . . . . . . . . . . . . . . . . . . Data Cores Recovered 3 | . . . . . . . . . 1 . . . . . . . . . 1 . . . . . . . . 1 Used . | . . . . . . . . . . . . . . . . . . . . . . . . . . . . . Hacking Detections 57 | . 5 . 6 . . . 2 10 3 . . . . 11 . 2 1 . 1 3 . . . . 5 4 2 2 Full Trace Events 7 | . 1 . 1 . . . . 2 . . . . . 2 . . . . . . . . . . . . . 1 Feedback Events 1 | . . . . . . . . . . . . . . 1 . . . . . . . . . . . . . . Corruption 1 | . . . . . . . . . . . . . . 1 . . . . . . . . . . . . . . Feedback Blocked . | . . . . . . . . . . . . . . . . . . . . . . . . . . . . . Robot Schematics Acquired 5 | . . . . . . . . . . . . 5 . . . . . . . . . . . . . . . . Robots Built . | . . . . . . . . . . . . . . . . . . . . . . . . . . . . . Authchips . | . . . . . . . . . . . . . . . . . . . . . . . . . . . . . Time . | . . . . . . . . . . . . . . . . . . . . . . . . . . . . . Total Robot Build Rating . | . . . . . . . . . . . . . . . . . . . . . . . . . . . . . Part Schematics Acquired 11 | . . . . . . . . . . . . 11 . . . . . . . . . . . . . . . . Parts Built 3 | . . . . . . . . 1 . . . . . . . . . . . . . . . . . 2 . . Authchips . | . . . . . . . . . . . . . . . . . . . . . . . . . . . . . Time 186 | . . . . . . . . 47 . . . . . . . . . . . . . . . . . 139 . . Total Part Build Rating 23 | . . . . . . . . 5 . . . . . . . . . . . . . . . . . 18 . . Parts Repaired . | . . . . . . . . . . . . . . . . . . . . . . . . . . . . . Time . | . . . . . . . . . . . . . . . . . . . . . . . . . . . . . Parts Recycled . | . . . . . . . . . . . . . . . . . . . . . . . . . . . . . Recycled Matter . | . . . . . . . . . . . . . . . . . . . . . . . . . . . . . Retrieved Matter . | . . . . . . . . . . . . . . . . . . . . . . . . . . . . . Retrieved Components 5 | . . . 2 . . . 1 2 . . . . . . . . . . . . . . . . . . . . Parts Scanalyzed . | . . . . . . . . . . . . . . . . . . . . . . . . . . . . . Part Schematics Acquired . | . . . . . . . . . . . . . . . . . . . . . . . . . . . . . Parts Damaged . | . . . . . . . . . . . . . . . . . . . . . . . . . . . . . Bothacking | -11 -10 -10 -9 -9 -9 -8 -8 -7 -6 -6 -6 -6 -5 -5 -5 -5 -5 -5 -5 -4 -4 -4 -4 -3 -3 -3 -2 -1 ------------ Run | Jun Mat Min Mat Min Exi Min Mat Fac Fac Low Low Dat Pro Fac Gar Ext Cet Arc Hub Fac Upp Upp War Pro Res Arm Res Acc Used RIF Installer . | . . . . . . . . . . . . . . . . . . . . . . . . . . . . . Robots Hacked . | . . . . . . . . . . . . . . . . . . . . . . . . . . . . . Non-combat . | . . . . . . . . . . . . . . . . . . . . . . . . . . . . . Combat . | . . . . . . . . . . . . . . . . . . . . . . . . . . . . . Robot Hacks Applied . | . . . . . . . . . . . . . . . . . . . . . . . . . . . . . Relay Couplers Released 15 | . . . . . . . . 3 . . . . . . . . . . . . . . . . 3 . 5 4 Machine Destruction 8 | . . . . . . . . 3 . . . . . . . . . . . . . . . . . . 1 4 Programmers 7 | . . . . . . . . . . . . . . . . . . . . . . . . . 3 . 4 . Fabnet Peak Effective % . | . . . . . . . . . . . . . . . . . . . . . . . . . . . . . Robots Rewired 17 | . . . . . . . . . 1 2 4 . . . . 10 . . . . . . . . . . . . Allies Hacked . | . . . . . . . . . . . . . . . . . . . . . . . . . . . . . Hacks Repelled . | . . . . . . . . . . . . . . . . . . . . . . . . . . . . . Allies | -11 -10 -10 -9 -9 -9 -8 -8 -7 -6 -6 -6 -6 -5 -5 -5 -5 -5 -5 -5 -4 -4 -4 -4 -3 -3 -3 -2 -1 -------- Run | Jun Mat Min Mat Min Exi Min Mat Fac Fac Low Low Dat Pro Fac Gar Ext Cet Arc Hub Fac Upp Upp War Pro Res Arm Res Acc Total Allies 39 | . . . . . . . . . 1 2 4 . 1 . . 26 5 . . . . . . . . . . . Largest Group 14 | . . . . . . . . . 1 2 4 3 3 2 . 14 10 4 2 . . . . . . . . . Highest-Rated Group 704 | . . . . . . . . . 32 62 106 81 127 127 . 530 704 366 192 . . . . . . . . . Highest-Rated Ally 159 | . . . . . . . . . 32 31 31 31 96 96 . 159 159 143 96 . . . . . . . . . Total Orders . | . . . . . . . . . . . . . . . . . . . . . . . . . . . . . Ally Attacks 356 | . . . . . . . . . 5 . 17 . 27 18 . 142 119 12 16 . . . . . . . . . Total Damage 9188 | . . . . . . . . . 131 . 356 . 594 411 . 3699 3013 307 677 . . . . . . . . . Kills 63 | . . . . . . . . . 1 . . . 6 2 . 22 26 1 5 . . . . . . . . . Allies Corrupted 2 | . . . . . . . . . 1 . . . . . . . . . 1 . . . . . . . . . Allies Melted 2 | . . . . . . . . . . . . . . . . 1 . . . . . . . . . . 1 . Intel | -11 -10 -10 -9 -9 -9 -8 -8 -7 -6 -6 -6 -6 -5 -5 -5 -5 -5 -5 -5 -4 -4 -4 -4 -3 -3 -3 -2 -1 ------- Run | Jun Mat Min Mat Min Exi Min Mat Fac Fac Low Low Dat Pro Fac Gar Ext Cet Arc Hub Fac Upp Upp War Pro Res Arm Res Acc Robot Analysis Total 5 | . 1 . 3 . . . . . . . . . . . . . . . . . . . . . . 1 . . Derelict Logs Recovered 7 | . . . . 1 . . . . . 1 3 . . . . . . . . . 1 1 . . . . . . Drone Launches . | . . . . . . . . . . . . . . . . . . . . . . . . . . . . . Drone Recoveries . | . . . . . . . . . . . . . . . . . . . . . . . . . . . . . Exploration | -11 -10 -10 -9 -9 -9 -8 -8 -7 -6 -6 -6 -6 -5 -5 -5 -5 -5 -5 -5 -4 -4 -4 -4 -3 -3 -3 -2 -1 ------------- Run | Jun Mat Min Mat Min Exi Min Mat Fac Fac Low Low Dat Pro Fac Gar Ext Cet Arc Hub Fac Upp Upp War Pro Res Arm Res Acc Turns Passed 25523 | 56 309 127 1184 207 354 474 887 3437 1183 872 707 148 351 2492 451 1133 949 111 638 1018 560 430 1101 868 2274 1972 880 350 Spaces Moved 13640 | 45 265 104 592 128 220 286 284 1276 405 316 329 91 189 1202 166 502 391 50 329 486 275 229 528 406 1025 1040 1807 674 Core 9 | 2 . . . . . . . . . . . . . . . . . . . . . . . . . 7 . . Treads 10269 | . . . 556 128 220 286 284 1276 405 312 329 91 189 1202 166 499 349 50 329 486 275 229 528 406 1025 649 . . Legs 4 | . . . . . . . . . . 4 . . . . . . . . . . . . . . . . . . Wheels 493 | 43 265 104 36 . . . . . . . . . . . . 3 42 . . . . . . . . . . . Hover 2865 | . . . . . . . . . . . . . . . . . . . . . . . . . . 384 1807 674 Flight . | . . . . . . . . . . . . . . . . . . . . . . . . . . . . . Fastest Speed 34 | 50 80 110 110 160 160 160 160 160 163 160 160 160 160 160 165 145 145 160 160 160 160 160 160 160 155 41 38 34 Average Speed 145 | 78 92 110 157 160 160 160 160 223 243 240 189 160 160 165 168 169 186 160 160 160 162 160 160 168 159 121 39 35 Slowest Speed 320 | 80 95 110 160 160 160 160 160 243 245 320 240 160 160 170 170 170 240 160 160 160 240 160 160 320 160 232 42 38 Overloaded Moves . | . . . . . . . . . . . . . . . . . . . . . . . . . . . . . Propulsion Burnouts . | . . . . . . . . . . . . . . . . . . . . . . . . . . . . . Robots Hopped . | . . . . . . . . . . . . . . . . . . . . . . . . . . . . . Cave-ins Triggered . | . . . . . . . . . . . . . . . . . . . . . . . . . . . . . Exploration Rate (%) 46 | 3 63 28 64 41 61 66 29 41 10 52 74 69 44 35 21 74 81 73 30 18 50 42 81 62 27 41 53 20 Regions Visited 28 Branch Regions 17 Pre-discovered Areas 3 | . . . . 1 1 . . . . . . 1 . . . . . . . . . . . . . . . . Known Exits Taken 5 | . . . . . . 1 . . . . 1 . . 1 . . . . . . . . . . . 1 1 . Unknown Exits Taken 22 | 1 1 1 1 1 1 . 1 1 1 1 . 1 1 . . 1 1 1 1 1 1 1 1 1 1 . . . Scrap Searched 10 | . . . . . . 1 . . . 2 4 . 1 . . . . . . . 1 1 . . . . . . Spaces Dug 66 | . . . . . . 9 3 . 1 . 2 . . 14 . . . . 3 2 . . . . 4 7 8 13 Terrain Destroyed 896 | . . . . . . 28 9 8 35 27 8 . 8 167 33 18 15 . 218 92 43 11 . 13 50 48 8 57 Melee 28 | . . . . . . . 3 . 1 . 2 . . . . . . . . . . . . . . 1 8 13 Projectile 184 | . . . . . . . . 2 . 1 6 . 8 54 15 18 . . 5 6 . . . . 24 45 . . AOE 682 | . . . . . . 28 6 6 34 26 . . . 113 18 . 15 . 213 86 43 11 . 13 26 . . 44 Terrain Rammed . | . . . . . . . . . . . . . . . . . . . . . . . . . . . . . Walls Destroyed . | . . . . . . . . . . . . . . . . . . . . . . . . . . . . . Machines Disabled . | . . . . . . . . . . . . . . . . . . . . . . . . . . . . . Actions | -11 -10 -10 -9 -9 -9 -8 -8 -7 -6 -6 -6 -6 -5 -5 -5 -5 -5 -5 -5 -4 -4 -4 -4 -3 -3 -3 -2 -1 --------- Run | Jun Mat Min Mat Min Exi Min Mat Fac Fac Low Low Dat Pro Fac Gar Ext Cet Arc Hub Fac Upp Upp War Pro Res Arm Res Acc Total 17741 | 58 302 109 750 128 222 299 664 1642 575 378 394 94 210 1568 276 728 602 69 412 643 344 275 783 517 1462 1536 1950 751 Wait 2074 | . 10 . 51 . . 7 329 157 133 13 7 . 3 179 36 35 153 10 38 66 28 33 227 49 183 228 59 40 Move 13611 | 44 264 103 591 127 219 285 283 1275 404 315 328 90 188 1202 165 501 390 49 328 485 274 228 527 405 1024 1039 1806 672 Hop . | . . . . . . . . . . . . . . . . . . . . . . . . . . . . . Pick Up 154 | 6 9 1 17 . 1 1 7 21 2 2 3 . . 20 4 6 8 . 2 4 . 1 4 2 12 12 8 1 Fast Attach 213 | 6 2 . 4 . . . 3 12 2 6 4 2 . 13 2 15 6 . 5 10 4 . 8 3 24 54 25 3 Attach 79 | . . 1 5 . . . 2 7 5 4 . . . 6 9 4 2 . . 2 . . . 5 9 13 1 4 Detach 77 | . 1 . 2 . . . 1 1 . 1 . . . 8 2 10 4 . 3 2 2 . . 3 15 9 10 3 Swap 142 | . . . 9 . 1 2 4 15 6 6 2 . 2 13 3 6 8 . 5 9 5 3 1 9 17 13 3 . Drop 247 | . 1 . 20 . 1 1 7 34 . . 4 2 . 31 2 9 15 . 6 11 5 1 14 4 22 34 20 3 Fire 909 | 2 15 4 51 1 . 3 25 117 18 27 9 . 17 95 43 41 16 10 19 45 26 9 2 37 142 132 . 3 Melee 60 | . . . . . . . 3 . 1 . 2 . . . . . . . 5 9 . . . . . 1 18 21 Ram . | . . . . . . . . . . . . . . . . . . . . . . . . . . . . . Kick . | . . . . . . . . . . . . . . . . . . . . . . . . . . . . . Crush 23 | . . . . . . . . 3 . . . . . 1 10 1 . . 1 . . . . . 6 1 . . Escape Stasis 1 | . . . . . . . . . . . . . . . . . . . . . . . . . . . . 1 Rewire 151 | . . . . . . . . . 4 4 35 . . . . 100 . . . . . . . . 8 . . . Trap . | . . . . . . . . . . . . . . . . . . . . . . . . . . . . . Miscellaneous . | . . . . . . . . . . . . . . . . . . . . . . . . . . . . . Route ------- -11/Junkyard -10/Materials (discovered 3 exits: *Mat x2 / [*Min]) -10/Mines -9/Materials (discovered 3 exits: *Mat / [*Min] / *Sto) -9/Mines -9/Exiles -8/Mines -8/Materials -7/Factory (discovered 3 exits: *Fac x3) -6/Factory -6/Lower Caves -6/Lower Caves -6/Data Miner -5/Proximity Caves -5/Factory -5/Garrison -5/Extension (discovered 3 exits: *Fac x2 / *Cet) -5/Cetus (discovered 2 exits: *Fac / *Arc) -5/Archives (discovered 2 exits: *Hub x2) -5/Hub_04(d) (discovered 2 exits: *Fac x2) -4/Factory -4/Upper Caves -4/Upper Caves -4/Warlord -3/Proximity Caves -3/Research (discovered 3 exits: *Res / *Arm / [*Tes]) -3/Armory -2/Research -1/Access To Epsilon Eridani History --------- Turn | Location | Event 41 | -11/Junkyard | Discovered new exit (range 12) 57 | -11/Junkyard | Entered Materials 124 | -10/Materials | Discovered new exit (range 7) 165 | -10/Materials | Discovered new exit (range 16) 301 | -10/Materials | Build established: Mutant 358 | -10/Materials | Discovered new exit (range 10) 366 | -10/Materials | Entered Mines 447 | -10/Mines | Received a Rocket Launcher from a helpful Derelict 484 | -10/Mines | Discovered new exit (range 5) 493 | -10/Mines | Entered Materials 493 | -9/Materials | Evolved 2 slots: Propulsion x1, Utility x1 924 | -9/Materials | Discovered new exit (range 13) 976 | -9/Materials | Discovered new exit (range 6) 986 | -9/Materials | Identified exit to Materials 1000 | -9/Materials | Identified exit to Storage 1624 | -9/Materials | Discovered new exit (range 7) 1677 | -9/Materials | Entered Mines 1869 | -9/Mines | Learned location of Storage (-9) 1877 | -9/Mines | Deemed a non-threat by the Exiles lab entrance 1877 | -9/Mines | Discovered new exit (range 5) 1884 | -9/Mines | Entered Exiles 1924 | -9/Exiles | Met 8R-AWN 1950 | -9/Exiles | Met EX-HEX 1996 | -9/Exiles | Met EX-BIN 2019 | -9/Exiles | Aligned with FarCom system 2020 | -9/Exiles | Given EX-Vault access code 2057 | -9/Exiles | Opened EX-Vault 2074 | -9/Exiles | Found Latent Energy Streamer 2110 | -9/Exiles | Warned to stay clear of 0b10 Research branches 2159 | -9/Exiles | Met EX-DEC 2167 | -9/Exiles | Learned location of Zion (-7) 2225 | -9/Exiles | Discovered new exit (range 10) 2238 | -9/Exiles | Left Exiles lab with Latent Energy Streamer 2238 | -9/Exiles | Entered Mines 2706 | -8/Mines | Discovered exit to Materials (range 5) 2712 | -8/Mines | Entered Materials 2712 | -8/Materials | Evolved 2 slots: Power x1, Utility x1 3252 | -8/Materials | System corruption reached 10% 3463 | -8/Materials | Garrison activated, responded to threat 3544 | -8/Materials | Discovered new exit (range 14) 3599 | -8/Materials | Entered Factory 3599 | -7/Factory | Evolved 2 slots: Utility x2 3673 | -7/Factory | Identified exit to DSF 5290 | -7/Factory | Discovered new exit (range 15) 6293 | -7/Factory | Fabricated Imp. Cryofiber Web (x1) 6438 | -7/Factory | Discovered new exit (range 6) 6898 | -7/Factory | System corruption reached 10% 6949 | -7/Factory | Discovered new exit (range 5) 7036 | -7/Factory | Entered another Factory area 7036 | -6/Factory | Evolved 2 slots: Propulsion x1, Utility x1 8134 | -6/Factory | Lost 3 parts (1n2w) 8209 | -6/Factory | Discovered new exit (range 5) 8219 | -6/Factory | Entered Lower Caves 8448 | -6/Lower Caves | Attacked by a faux Warlord 8482 | -6/Lower Caves | System corruption reached 10% 8487 | -6/Lower Caves | Lost 4 parts (2p1n1u) 8581 | -6/Lower Caves | Encountered a Warlord checkpoint 8787 | -6/Lower Caves | Build established: Scavenger-Mutant 9045 | -6/Lower Caves | Discovered new exit (range 14) 9084 | -6/Lower Caves | Learned location of 1 exit from Lower Caves 9091 | -6/Lower Caves | Entered another Lower Caves area 9091 | -6/Lower Caves | Accompanied by 2 allies 9092 | -6/Lower Caves | Identified exit to Data Miner 9302 | -6/Lower Caves | Encountered a Warlord checkpoint 9399 | -6/Lower Caves | Attacked by a delusional Derelict stockpiling Unaware 9615 | -6/Lower Caves | Learned Factory interactive machine intel 9722 | -6/Lower Caves | Attracted the attention of an 0b10 checkpoint 9754 | -6/Lower Caves | Learned Factory security intel 9773 | -6/Lower Caves | Learned Factory stockpile data 9798 | -6/Lower Caves | Entered Data Miner 9798 | -6/Data Miner | Accompanied by 3 allies 9799 | -6/Data Miner | Discovered new exit (range 6) 9830 | -6/Data Miner | Met Data Miner 9870 | -6/Data Miner | Learned location of Section 7 (-2) 9870 | -6/Data Miner | Acquired the access code to Warlord's prototype stash 9886 | -6/Data Miner | Received God Mode back door access code from Data Miner 9946 | -6/Data Miner | Entered Proximity Caves 9946 | -5/Proximity Caves | Accompanied by 3 allies 9948 | -5/Proximity Caves | Spotter reported a threat 10043 | -5/Proximity Caves | Escorted by Enhanced Grunt 10044 | -5/Proximity Caves | Spotter reported a threat 10278 | -5/Proximity Caves | Discovered new exit (range 9) 10297 | -5/Proximity Caves | Entered Factory 10297 | -5/Factory | Accompanied by 2 allies 10297 | -5/Factory | Evolved 2 slots: Power x1, Utility x1 10300 | -5/Factory | Loaded intel: 54 interactive machine locations 10597 | -5/Factory | Search patrols dispatched 10974 | -5/Factory | Incoming investigation squad redirected 11105 | -5/Factory | Build established: Mutant 11164 | -5/Factory | Destroyed 9 combat bots 11204 | -5/Factory | Found Prototype Launcher 11204 | -5/Factory | Identified Mni. Smartbomb Launcher 11696 | -5/Factory | Spotted B-75 Beast 11720 | -5/Factory | Destroyed B-75 Beast 12169 | -5/Factory | Incoming investigation squad redirected 12697 | -5/Factory | First assault squad dispatched 12789 | -5/Factory | Identified exit to Garrison 12789 | -5/Factory | Entered Garrison 13023 | -5/Garrison | Destroyed 12 combat bots 13026 | -5/Garrison | Lost 4 parts (1p3u) 13040 | -5/Garrison | Triggered checkpoint 13085 | -5/Garrison | Lost 3 parts (1n1u1w) 13219 | -5/Garrison | Discovered new exit (range 12) 13240 | -5/Garrison | Entered Extension 13368 | -5/Extension | Lost 3 parts (1p1u1w) 13451 | -5/Extension | Rescued a captive Derelict 13452 | -5/Extension | Rescued a captive Derelict 13499 | -5/Extension | Rescued a captive Derelict 13769 | -5/Extension | Rescued a captive Derelict 13771 | -5/Extension | Rescued a captive Derelict 13791 | -5/Extension | Rescued A7 13830 | -5/Extension | Rescued a captive Derelict 13832 | -5/Extension | Rescued a captive Derelict 13881 | -5/Extension | Rescued a captive Derelict 13881 | -5/Extension | Rescued a captive Derelict 13893 | -5/Extension | Spotted B-75 Beast 13905 | -5/Extension | Spotted B-75 Beast 13921 | -5/Extension | Allies destroyed B-75 Beast 13930 | -5/Extension | Allies destroyed B-75 Beast 13949 | -5/Extension | Discovered new exit (range 14) 14038 | -5/Extension | Build established: Scavenger-Mutant 14099 | -5/Extension | Rescued a captive Derelict 14099 | -5/Extension | Rescued a captive Derelict 14120 | -5/Extension | Rescued a captive Derelict 14194 | -5/Extension | Rescued a captive Derelict 14237 | -5/Extension | Rescued a captive Derelict 14237 | -5/Extension | Rescued a captive Derelict 14276 | -5/Extension | Energy Cycler disabled 14276 | -5/Extension | Rescued a captive Derelict 14277 | -5/Extension | Rescued a captive Derelict 14351 | -5/Extension | Discovered new exit (range 10) 14353 | -5/Extension | Discovered new exit (range 6) 14373 | -5/Extension | Entered Cetus 14373 | -5/Cetus | Accompanied by 10 allies (A7) 14378 | -5/Cetus | Acquired a Cetus Manufacturing Module code from A7 14394 | -5/Cetus | Spotted Cetus Guard 14394 | -5/Cetus | Spotted Cetus Guard 14400 | -5/Cetus | Spotted Cetus Guard 14403 | -5/Cetus | Spotted Cetus Guard 14406 | -5/Cetus | Allies destroyed Cetus Guard 14416 | -5/Cetus | Destroyed Cetus Guard 14418 | -5/Cetus | Allies destroyed Cetus Guard 14421 | -5/Cetus | Allies destroyed Cetus Guard 14440 | -5/Cetus | System corruption reached 10% 14637 | -5/Cetus | Started Cetus Manufacturing Module 14662 | -5/Cetus | Manufactured an Enhanced Grunt 14687 | -5/Cetus | Manufactured an Enhanced Grunt 14712 | -5/Cetus | Manufactured an Enhanced Grunt 14737 | -5/Cetus | Manufactured an Enhanced Grunt 14762 | -5/Cetus | Manufactured an Enhanced Grunt 14803 | -5/Cetus | Cetus Manufacturing Module disabled 14811 | -5/Cetus | Discovered new exit (range 15) 14905 | -5/Cetus | Spotted Cetus Guard 14905 | -5/Cetus | Spotted Cetus Guard 14910 | -5/Cetus | Spotted Cetus Guard 14915 | -5/Cetus | Spotted Cetus Guard 14920 | -5/Cetus | Allies destroyed Cetus Guard 14922 | -5/Cetus | Allies destroyed Cetus Guard 14924 | -5/Cetus | Allies destroyed Cetus Guard 14925 | -5/Cetus | Discovered new exit (range 16) 14930 | -5/Cetus | Allies destroyed Cetus Guard 14944 | -5/Cetus | Met Revision 17 15011 | -5/Cetus | Core integrity fell below 50% 15128 | -5/Cetus | Escorted A7 to Cetus Mainframe 15322 | -5/Cetus | Entered Archives 15322 | -5/Archives | Accompanied by 4 allies (A7) 15327 | -5/Archives | Received a hacking code to weaken MAIN.C 15375 | -5/Archives | Discovered new exit (range 15) 15397 | -5/Archives | Unable to access archive contents 15403 | -5/Archives | Discovered new exit (range 14) 15433 | -5/Archives | Entered Hub_04(d) 15433 | -5/Hub_04(d) | Accompanied by 2 allies 15477 | -5/Hub_04(d) | System corruption reached 30% 15580 | -5/Hub_04(d) | Discovered new exit (range 6) 15761 | -5/Hub_04(d) | Discovered new exit (range 9) 15825 | -5/Hub_04(d) | Network Hub disabled 16071 | -5/Hub_04(d) | Entered Factory 16071 | -4/Factory | Evolved 2 slots: Utility x2 16913 | -4/Factory | Spotted B-86 Titan 16936 | -4/Factory | Destroyed B-86 Titan 17043 | -4/Factory | Discovered new exit (range 5) 17071 | -4/Factory | First assault squad dispatched 17089 | -4/Factory | Entered Upper Caves 17192 | -4/Upper Caves | Spotted B-86 Titan 17216 | -4/Upper Caves | Destroyed B-86 Titan 17292 | -4/Upper Caves | Learned Research emergency access door positions 17430 | -4/Upper Caves | Attracted the attention of an 0b10 checkpoint 17632 | -4/Upper Caves | Discovered new exit (range 7) 17649 | -4/Upper Caves | Entered another Upper Caves area 17696 | -4/Upper Caves | Learned Research garrison access intel 18064 | -4/Upper Caves | Discovered new exit (range 10) 18079 | -4/Upper Caves | Entered Warlord 18133 | -4/Warlord | System corruption cleaned by Quarantine Array 18376 | -4/Warlord | Visited the Vortex Lab 18386 | -4/Warlord | Found Prototype Piercing Weapon 18387 | -4/Warlord | Warlord's base attacked by MAIN.C 18393 | -4/Warlord | Found Prototype Launcher 18501 | -4/Warlord | Met Warlord 18524 | -4/Warlord | Opened Warlord's prototype stash 18530 | -4/Warlord | Found Prototype Reactor 18536 | -4/Warlord | Found Prototype Processor 18536 | -4/Warlord | Identified Exp. Targeting Computer 18545 | -4/Warlord | Found Prototype Processor 18545 | -4/Warlord | Identified Exp. Armor Integrity Analyzer 18548 | -4/Warlord | Found Prototype Device 18548 | -4/Warlord | Identified System Purifier 18737 | -4/Warlord | Warlord forces counterattacked 19062 | -4/Warlord | Warlord base infiltrated, sounded retreat 19133 | -4/Warlord | Opened side exit 19159 | -4/Warlord | Spotted Executioner 19166 | -4/Warlord | Discovered new exit (range 13) 19180 | -4/Warlord | Entered Proximity Caves 19182 | -3/Proximity Caves | Attracted the attention of an 0b10 checkpoint 19401 | -3/Proximity Caves | Received a Behemoth hack from an annoying Tinkerer 19782 | -3/Proximity Caves | System corruption reached 10% 19836 | -3/Proximity Caves | Spotted B-86 Titan 19876 | -3/Proximity Caves | Destroyed B-86 Titan 19952 | -3/Proximity Caves | System corruption reached 30% 20035 | -3/Proximity Caves | Discovered new exit (range 9) 20048 | -3/Proximity Caves | Entered Research 20048 | -3/Research | Evolved 2 slots: Propulsion x2 20050 | -3/Research | Loaded intel: 4 garrison access locations 20466 | -3/Research | Identified Vortex Lance 20478 | -3/Research | Garrison activated, responded to threat 20900 | -3/Research | Destroyed 7 combat bots 21475 | -3/Research | Discovered new exit (range 15) 21581 | -3/Research | Discovered new exit (range 13) 21669 | -3/Research | Found Prototype Device 21669 | -3/Research | Identified Adv. Kinecellerator 21971 | -3/Research | Found Prototype Slashing Weapon 21971 | -3/Research | Identified Nanosword 22249 | -3/Research | Discovered new exit (range 12) 22317 | -3/Research | System corruption reached 10% 22322 | -3/Research | Entered Armory 22634 | -3/Armory | Fabricated Rnf. Quantum Reactor? 23183 | -3/Armory | Build established: Mutant 23225 | -3/Armory | Found Unknown Device 23225 | -3/Armory | Identified Antimissile System 23378 | -3/Armory | Lost 3 parts (1u2w) 23450 | -3/Armory | Found Prototype Processor 23450 | -3/Armory | Identified Spectral Analyzer 23611 | -3/Armory | Found Prototype Device 23611 | -3/Armory | Identified Exp. Thermal Defense Suite 23861 | -3/Armory | System corruption reached 30% 23942 | -3/Armory | Lost 12 parts (2p4n6u) 24049 | -3/Armory | Identified Vortex Chain Reactor 24185 | -3/Armory | Found Spectral Analyzer 24293 | -3/Armory | Discovered new exit (range 3) 24294 | -3/Armory | Identified exit to Research 24294 | -3/Armory | Entered Research 24294 | -2/Research | Warlord forces began assault on 0b10 24294 | -2/Research | Evolved 2 slots: Propulsion x1, Utility x1 24336 | -2/Research | Build established: Scavenger-Mutant 24404 | -2/Research | Research machine network offline 24404 | -2/Research | Found Unknown Device 24404 | -2/Research | Identified Quantum Capacitor 24823 | -2/Research | Borebot progress halted 24913 | -2/Research | Found Prototype Processor 24913 | -2/Research | Identified Exp. Melee Analysis Suite 24947 | -2/Research | System corruption reached 10% 25160 | -2/Research | Borebot progress halted 25169 | -2/Research | Discovered new exit (range 9) 25173 | -2/Research | Identified exit to Access 25174 | -2/Research | Entered Access 25174 | -1/Access | Evolved 2 slots: Propulsion x1, Utility x1 25378 | -1/Access | Incoming assault squad redirected 25383 | -1/Access | Incoming investigation squad redirected 25467 | -1/Access | Spotted B-99 Colossus 25508 | -1/Access | Identified Vortex Catalyst Activator 25520 | -1/Access | Discovered new exit (range 9) 25524 | *** | Escaped! Last Messages --------------- Destroyed Imp. Ion Engine. U-05 Engineer builds a Wall. R-10 Processor collects Unknown Special Weapon. U-05 Engineer builds a Wall. ALERT: Rogue bot located, Programmers report to Access Zone 9Q. Identified Vortex Catalyst Activator. S-43 Plague destroyed. Destroyed Xenon Bombardment Thruster. Destroyed Unknown Reactor. Destroyed Xenon Bombardment Thruster. S-43 Plague destroyed. Destroyed Unknown Reactor. S-43 Plague destroyed. Acquired 7 matter. Acquired 3 matter. Sealed Barrier breached. Main Access Shell breached. EXIT=FOUND U-05 Engineer builds a Wall. U-05 Engineer lays Concrete. Map ----- +----------------------------------------------------+ | ???????????????????????????????????????????# # | | ???????????????????????????????????????????# # | | ??????????????????????###################### # | | ??????????????????????# # | | ??????????????????????# # | | ??????????????????????# + | | ??????????????????????# # | | ??????????????????????# ^#################+##+# | | ??????????????????????# ?????## = # | | ??????????????????????# ???????# # | | ????????????????????? ???????# * # | | ???????????????????? ????????# !!] # | | ???????????????????# ????????# !=] # | | ???????????????????# ?????????# != # | | ???????????????????# BB ???BB????# # | | ???????????????????# BB????BB????# # | | ???????????????????# ??????????###############"# | | ???????????????????#""????????????????# | | ??????????????????????????????????????# | | ??????????????????????????????????????# | | ???????????????????#"???????""#???????# | | ???????????????????# ?????? #???????# | | ???????????????????# """""" #???????# | | ???????????????????# " " #???????# | | ???????????????????# "" #???????# ] | | ???????????????????# "@ #???????# | | ???????????????????# ##??????# | | ???????????????????# ;#??????# | | ???????????????????# ##?????## | | ???????????????????# #??????########+#### | | ???????????????????"" "#?????##! | | ???????????????????# ;#??????# | | ???????????????????# ;#??????# # | | ???????????????????# ;#??????# " # | | ???????????????????#T ;#??????# """ # | | ???????????????????#" ;##?????# """ # | | ???????????????????#" ; #?????# " # | | ?????????????????###" % ;######## # | | ?????????? u % * | | ?????????? w % % | | ???????????##########"";;;;;""""####### ####### | | ????????????????????## ##???####+#####???? | | ?????????????????????# #????# #???? | | ?????????????????????### ###????# #???? | | ???????????????????????#######??????# """#???? | | ????????????????????????????????????# """#???? | | ????????????????????????????????????# R"#???? | | ????????????????????????????????????# """#???? | | ????????????????????????????????????# ! "" #???? | | ????????????????????????????????????# #???? | +----------------------------------------------------+ Best States ------------- Heat Dissipation 127 Coolant Potential 80 Energy Generation 75 Energy Capacity 1200 Matter Stores 300 Matter Capacity 300 Sight Range 24 Terrain Scan Range 24 Terrain Scan Density 85 ECM Strength 1 Jamming Range 16 Cloak Strength 3 Additional Mass Support 12 Base Temperature (-) 150 Armor Coverage 1650 Resistance: KI 30 Resistance: TH 15 Propulsion Shielding 33 Point Defense Rating 240 Weapon Cycling 25 Phase Shifting 10 Evasion (%) 78 Targeting Accuracy 20 Melee Accuracy 22 Target Analysis 12 Armor Integrity Analysis 50 Recoil Reduction 6 Matter Filtering 30 Energy Filtering 30 Kinecelleration 50 Offensive Hacking 26 Defensive Hacking 12 Item Schematics ----------------- Combat Drone Bay | -6/Data Miner | Free Lgt. Regenerative Plating | -6/Data Miner | Free Cld. Gravmag System | -6/Data Miner | Free Prc. Energy Filter | -6/Data Miner | Free Plasma Sword | -6/Data Miner | Free Adv. VSS Leg | -6/Data Miner | Free Imp. Remote Shield | -6/Data Miner | Free Hardcell Cannon | -6/Data Miner | Free Point Defense System | -6/Data Miner | Free Adv. Thermal Shield | -6/Data Miner | Free Adv. Component Analysis Suite | -6/Data Miner | Free Robot Schematics ------------------ B-48 Gladiator | -6/Data Miner | Free B-60 Warrior | -6/Data Miner | Free Y-64 Sentinel | -6/Data Miner | Free S-27 Virus | -6/Data Miner | Free A-15 Conveyor | -6/Data Miner | Free Fabricated ------------ Imp. Cryofiber Web | x1 | -7/Factory | Preloaded Rnf. Quantum Reactor | x2 | -3/Armory | Preloaded Alien Tech Used ----------------- None Achievements -------------- None Challenges ------------ None Game ------ Seed ZhirovDiametricInsulator Manual? 0 Play Time 03:28:07 Cumulative 343.3 hours Start 2023.03.24 @ 16:24:59 End 2023.04.06 @ 12:40:31 Sessions 7 Manual Loads 0 Difficulty Rogue Special Mode None Game No. 331 Rogue 331 Adventurer 0 Explorer 0 Win Type 0 Total 24 Types 18/0/4/2/0/0/0/0/0 Lore% 84 Gallery% 90 Achievement% 80 Wizard Run 0 Options --------- ASCII 0 Keyboard 1 Movement Numpad Keybinds 0 Fullscreen 1 Font 18/SmallcapsGlow Map View 76x50 Tactical HUD 1 Map Filters NONE Filters NONE Steam 1 RUN: 7b18351c-fdba-465a-9dfb-0100b857e5a5